Workbook

Sheet All. 9 - RIEPILOGO PER UGBTEP
B1: Ufficio Unico Contratti e Risorse + Ufficio per la Gestione delle risorse materiali e Servizi generali
A3: Anno | B3: CAPITOLO DI SPESA | C3: DETERMINA N. DEL | D3: CIG | E3: OGGETTO DEL CONTRATTO | F3: PERIODO CONTRATTUALE (DAL ...….… AL……....) | H3: IMPORTO A BASE D'ASTA | I3: AMMONTARE INCENTIVO PER SINGOLO CONTRATTO (2% -1,90%) | J3: 0.8 | K3: 0.2 | L3: quota 80% RELATIVA ALL'UFFICIO che ha predisposto l'allegato 10 (es. UUCR, SPI, … ALTRO) anno in corso | M3: quota 80% RELATIVA ALL'UFFICIO che ha predisposto l'allegato 10 (es. UUCR, SPI, … ALTRO) anno in corso | N3: Nominativo di cui al'all. 10 | O3: Tipo incarico | P3: importo unitario liquidato | Q3: percentuale di ripartizione dell'incentivo in base al tipo di incarico svolto | R3: QUOTA LIQUIDATA NEL 2019 | S3: 2021 | T3: 2022 | U3: 2023 | V3: 2024 | W3: 2025
A4: 2019 | B4: 1273 | C4: 157 DEL 14/08/2019 | D4: 80080904EC | E4: ADESIONE alla convenzione per la prestazione dei servizi di telefonia mobile per le pubbliche amministrazioni – Edizione 7 – ai sensi dell’art. 26, legge 23 dicembre 1999 n. 488 e s.m.i e dell’art. 58, legge 23 dicembre 2000 n. 388 | F4: 18 MESI DALL'ATTIVAZIONE DELLA CONVENZIONE | H4: 52500 | I4: =+H4*0.02 -> 1050 | J4: =+(I4)*0.8 -> 840 | K4: =+(I4)*0.2 -> 210 | L4: =+M4 -> 117.6 | M4: =+P4+P5+P6+P7 -> 117.6 | O4: Inc. Pred. Doc | P4: =+J4*Q4 -> 16.8 | Q4: 0.02
A5: 2019 | B5: 1273 | C5: 157 DEL 14/08/2019 | D5: 80080904EC | E5: ADESIONE alla convenzione per la prestazione dei servizi di telefonia mobile per le pubbliche amministrazioni – Edizione 7 – ai sensi dell’art. 26, legge 23 dicembre 1999 n. 488 e s.m.i e dell’art. 58, legge 23 dicembre 2000 n. 388 | F5: 18 MESI DALL'ATTIVAZIONE DELLA CONVENZIONE | H5: 52500 | I5: =+H5*0.02 -> 1050 | J5: =+(I5)*0.8 -> 840 | K5: =+(I5)*0.2 -> 210 | M5: =+M4 -> 117.6 | O5: Coll. Inc. Pred. Doc | P5: =+J5*Q5 -> 8.4 | Q5: 0.01
A6: 2019 | B6: 1273 | C6: 157 DEL 14/08/2019 | D6: 80080904EC | E6: ADESIONE alla convenzione per la prestazione dei servizi di telefonia mobile per le pubbliche amministrazioni – Edizione 7 – ai sensi dell’art. 26, legge 23 dicembre 1999 n. 488 e s.m.i e dell’art. 58, legge 23 dicembre 2000 n. 388 | F6: 18 MESI DALL'ATTIVAZIONE DELLA CONVENZIONE | H6: 52500 | I6: 1050 | J6: 840 | K6: 210 | M6: =+M5 -> 117.6 | O6: RUP Affidamento | P6: =+J6*Q6 -> 67.2 | Q6: 0.08
A7: 2019 | B7: 1273 | C7: 157 DEL 14/08/2019 | D7: 80080904EC | E7: ADESIONE alla convenzione per la prestazione dei servizi di telefonia mobile per le pubbliche amministrazioni – Edizione 7 – ai sensi dell’art. 26, legge 23 dicembre 1999 n. 488 e s.m.i e dell’art. 58, legge 23 dicembre 2000 n. 388 | F7: 18 MESI DALL'ATTIVAZIONE DELLA CONVENZIONE | H7: 52500 | I7: =+H7*0.02 -> 1050 | J7: 840 | K7: 210 | M7: 117.6 | O7: Coll RUP Aff. | P7: =+J7*Q7 -> 25.2 | Q7: 0.03
A8: 2019 | B8: 1273 | C8: 155 DEL 12/08/2019 | D8: ZF3296F4FC | E8: Affidamento dei Servizi finalizzati alla trasmissione in diretta streaming, alla registrazione ed alla post elaborazione video di n. 35 giornate per eventi presso la Giustizia Amministrativa | F8: 2019-09-06 | G8: 2021-06-05 | H8: 38235.29 | I8: =+H8*0.02 -> 764.7058 | J8: =+(I8)*0.8 -> 611.76464 | K8: =+(I8)*0.2 -> 152.94116 | L8: =+M8 -> 189.6470384 | M8: =+P8+P9+P10+P11 -> 189.6470384 | O8: Inc. Pred. Doc | P8: =+J8*Q8 -> 30.588232 | Q8: 0.05
A9: 2019 | B9: 1273 | C9: 155 DEL 12/08/2019 | D9: ZF3296F4FC | E9: Affidamento dei Servizi finalizzati alla trasmissione in diretta streaming, alla registrazione ed alla post elaborazione video di n. 35 giornate per eventi presso la Giustizia Amministrativa | F9: 2019-09-06 | G9: 2021-06-05 | H9: 38235.29 | I9: =+H9*0.02 -> 764.7058 | J9: =+(I9)*0.8 -> 611.76464 | K9: =+(I9)*0.2 -> 152.94116 | M9: =+M8 -> 189.6470384 | O9: Coll. Inc. Pred. Doc | P9: =+J8*Q9 -> 61.176464 | Q9: 0.1
A10: 2019 | B10: 1273 | C10: 155 DEL 12/08/2019 | D10: ZF3296F4FC | E10: Affidamento dei Servizi finalizzati alla trasmissione in diretta streaming, alla registrazione ed alla post elaborazione video di n. 35 giornate per eventi presso la Giustizia Amministrativa | F10: 2019-09-06 | G10: 2021-06-05 | H10: 38235.29 | I10: 764.7058 | J10: 611.76464 | K10: 152.94116 | M10: =+M9 -> 189.6470384 | O10: RUP Affidamento | P10: =+J9*Q10 -> 61.176464 | Q10: 0.1
A11: 2019 | B11: 1273 | C11: 155 DEL 12/08/2019 | D11: ZF3296F4FC | E11: Affidamento dei Servizi finalizzati alla trasmissione in diretta streaming, alla registrazione ed alla post elaborazione video di n. 35 giornate per eventi presso la Giustizia Amministrativa | F11: 2019-09-06 | G11: 2021-06-05 | H11: 38235.29 | I11: 764.7058 | J11: 611.76464 | K11: 152.94116 | M11: 189.6470384 | O11: Coll RUP Aff. | P11: 36.7058784 | Q11: 0.06
A12: 2020 | B12: 1273 | C12: 213 del 19/11/2020 | D12: ZE52F4D567 | E12: =+E13 -> Abbonamento riviste online Giustamm | F12: 2021-12-01 | G12: 2023-12-31 | H12: 15480 | I12: 309.6 | J12: =+(I12)*0.8 -> 247.68 | K12: =+(I12)*0.2 -> 61.92 | L12: =+M12 -> 76.78 | M12: =+P12+P13+P14+P15 -> 76.78 | N12: Boni Marco | O12: Inc. Pred. Doc | P12: 12.38 | Q12: 0.05 | S12: 0
A13: 2020 | B13: 1273 | C13: 213 del 19/11/2020 | D13: ZE52F4D567 | E13: Abbonamento riviste online Giustamm | F13: 2021-12-01 | G13: 2023-12-31 | H13: 15480 | I13: 309.6 | J13: 247.68 | K13: 61.92 | M13: 76.78 | N13: Boni Marco | O13: Coll. Inc. Pred. Doc | P13: 24.77 | Q13: 0.1 | S13: 0
A14: 2020 | B14: 1273 | C14: 213 del 19/11/2020 | D14: ZE52F4D567 | E14: Abbonamento riviste online Giustamm | F14: 2021-12-01 | G14: 2023-12-31 | H14: 15480 | I14: 309.6 | J14: 247.68 | K14: 61.92 | M14: 76.78 | N14: Boni Marco | O14: RUP Affidamento | P14: 24.77 | Q14: 0.1 | S14: 0
A15: 2020 | B15: 1273 | C15: 213 del 19/11/2020 | D15: ZE52F4D567 | E15: Abbonamento riviste online Giustamm | F15: 2021-12-01 | G15: 2023-12-31 | H15: 15480 | I15: 309.6 | J15: 247.68 | K15: 61.92 | M15: 76.78 | N15: Boni Marco | O15: Coll RUP Aff. | P15: 14.86 | Q15: 0.06 | S15: 0
A16: 2020 | B16: 1273 | C16: 212 del 18/11/2020 | D16: 8522290031 | E16: Materiale facile consumo | F16: 2020-12-15 | G16: 2020-12-18 | H16: 40200 | I16: 804 | J16: 643.2 | K16: 160.8 | L16: =+M16 -> 199.39 | M16: =+P16+P17+P18+P19 -> 199.39 | N16: Boni Marco | O16: Inc. Pred. Doc | P16: 32.16 | Q16: 0.05 | S16: 0
A17: 2020 | B17: 1273 | C17: 212 del 18/11/2020 | D17: 8522290031 | E17: Materiale facile consumo | F17: 2020-12-15 | G17: 2020-12-18 | H17: 40200 | I17: 804 | J17: 643.2 | K17: 160.8 | M17: 199.39 | N17: Boni Marco | O17: Coll. Inc. Pred. Doc | P17: 64.32 | Q17: 0.1 | S17: 0
A18: 2020 | B18: 1273 | C18: 212 del 18/11/2020 | D18: 8522290031 | E18: Materiale facile consumo | F18: 2020-12-15 | G18: 2020-12-18 | H18: 40200 | I18: 804 | J18: 643.2 | K18: 160.8 | M18: 199.39 | N18: Boni Marco | O18: RUP Affidamento | P18: 64.32 | Q18: 0.1 | S18: 0
A19: 2020 | B19: 1273 | C19: 212 del 18/11/2020 | D19: 8522290031 | E19: Materiale facile consumo | F19: 2020-12-15 | G19: 2020-12-18 | H19: 40200 | I19: 804 | J19: 643.2 | K19: 160.8 | M19: 199.39 | N19: Boni Marco | O19: Coll RUP Aff. | P19: 38.59 | Q19: 0.06 | S19: 0
A20: 2020 | B20: 1273 | C20: 161 del 28/9/2020 | D20: Z0F2E76A02 | E20: Toner per stampanti magistrati | F20: 2020-10-14 | G20: 2020-10-19 | H20: 15000 | I20: 300 | J20: 240 | K20: 60 | L20: =+M20 -> 74.4 | M20: =+P20+P21+P22+P23 -> 74.4 | N20: Boni Marco | O20: Inc. Pred. Doc | P20: 12 | Q20: 0.05 | S20: 0
A21: 2020 | B21: 1273 | C21: 161 del 28/9/2020 | D21: Z0F2E76A02 | E21: Toner per stampanti magistrati | F21: 2020-10-14 | G21: 2020-10-19 | H21: 15000 | I21: 300 | J21: 240 | K21: 60 | M21: 74.4 | N21: Boni Marco | O21: Coll. Inc. Pred. Doc | P21: 24 | Q21: 0.1 | S21: 0
A22: 2020 | B22: 1273 | C22: 161 del 28/9/2020 | D22: Z0F2E76A02 | E22: Toner per stampanti magistrati | F22: 2020-10-14 | G22: 2020-10-19 | H22: 15000 | I22: 300 | J22: 240 | K22: 60 | M22: 74.4 | N22: Boni Marco | O22: RUP Affidamento | P22: 24 | Q22: 0.1 | S22: 0
A23: 2020 | B23: 1273 | C23: 161 del 28/9/2020 | D23: Z0F2E76A02 | E23: Toner per stampanti magistrati | F23: 2020-10-14 | G23: 2020-10-19 | H23: 15000 | I23: 300 | J23: 240 | K23: 60 | M23: 74.4 | N23: Boni Marco | O23: Coll RUP Aff. | P23: 14.4 | Q23: 0.06 | S23: 0
A24: 2020 | B24: 1273 | C24: 174 del 12/10/2020 | D24: ZA92EB6BE8 | E24: Toner per stampanti magistrati | F24: 2020-10-14 | G24: 2020-10-19 | H24: 2130 | I24: 42.6 | J24: 34.08 | K24: 8.52 | L24: =+M24 -> 10.56 | M24: =+P24+P25+P26+P27 -> 10.56 | N24: Boni Marco | O24: Inc. Pred. Doc. | P24: 1.7 | Q24: 0.05 | S24: 0
A25: 2020 | B25: 1273 | C25: 174 del 12/10/2020 | D25: ZA92EB6BE8 | E25: Toner per stampanti magistrati | F25: 2020-10-14 | G25: 2020-10-19 | H25: 2130 | I25: 42.6 | J25: 34.08 | K25: 8.52 | M25: 10.56 | N25: Boni Marco | O25: Coll. Inc. Pred. Doc. | P25: 3.41 | Q25: 0.1 | S25: 0
A26: 2020 | B26: 1273 | C26: 174 del 12/10/2020 | D26: ZA92EB6BE8 | E26: Toner per stampanti magistrati | F26: 2020-10-14 | G26: 2020-10-19 | H26: 2130 | I26: 42.6 | J26: 34.08 | K26: 8.52 | M26: 10.56 | N26: Boni Marco | O26: RUP Affidamento | P26: 3.41 | Q26: 10 | S26: 0
A27: 2020 | B27: 1273 | C27: 174 del 12/10/2020 | D27: ZA92EB6BE8 | E27: Toner per stampanti magistrati | F27: 2020-10-14 | G27: 2020-10-19 | H27: 2130 | I27: 42.6 | J27: 34.08 | K27: 8.52 | M27: 10.56 | N27: Boni Marco | O27: Coll RUP Aff. | P27: 2.04 | Q27: 0.06 | S27: 0
A28: 2020 | B28: 1273 | C28: 231 del9/12/2020 | D28: 8540405528 | E28: Ampliamento servizio caselle PEC | F28: 2020-12-12 | G28: 2023-03-11 | H28: 38915 | I28: 778.3 | J28: 622.64 | K28: 155.66 | L28: =+M28 -> 193.01 | M28: =+P28+P29+P30+P31 -> 193.01 | N28: Boni Marco | O28: Inc. Pred. Doc. | P28: 31.13 | Q28: 0.05 | S28: 0
A29: 2020 | B29: 1273 | C29: 231 del9/12/2020 | D29: 8540405528 | E29: Ampliamento servizio caselle PEC | F29: 2020-12-12 | G29: 2023-03-11 | H29: 38915 | I29: 778.3 | J29: 622.64 | K29: 155.66 | M29: 193.02 | N29: Cipriano Leonardo | O29: Coll. Inc. Pred. Doc. | P29: 62.26 | Q29: 0.1 | S29: 0
A30: 2020 | B30: 1273 | C30: 231 del9/12/2020 | D30: 8540405528 | E30: Ampliamento servizio caselle PEC | F30: 2020-12-12 | G30: 2023-03-11 | H30: 38915 | I30: 778.3 | J30: 622.64 | K30: 155.66 | M30: 193.02 | N30: Boni Marco | O30: RUP Affidamento | P30: 62.26 | Q30: 0.1 | S30: 0
A31: 2020 | B31: 1273 | C31: 231 del9/12/2020 | D31: 8540405528 | E31: Ampliamento servizio caselle PEC | F31: 2020-12-12 | G31: 2023-03-11 | H31: 38915 | I31: 778.3 | J31: 622.64 | K31: 155.66 | M31: 193.02 | N31: Cipriano Leonardo | O31: Coll RUP Aff. | P31: 37.36 | Q31: 0.06 | S31: 0
A32: 2020 | B32: 1273 | C32: 103 del 4/6/2020 | D32: ZA92D33D34 | E32: 200 WEBCAM (gara deserta) | F32: contratto non stipulato | H32: 5000 | I32: 100 | J32: 80 | K32: 20 | L32: =+M32 -> 24.8 | M32: =+P32+P33+P34+P35 -> 24.8 | N32: Costanzo Pasqualina | O32: Rup affidamento | P32: =+J32*Q32 -> 8 | Q32: 0.1 | S32: 0
A33: 2020 | B33: 1273 | C33: 103 del 4/6/2020 | D33: ZA92D33D34 | E33: 200 WEBCAM (gara deserta) | F33: contratto non stipulato | H33: 5000 | I33: 100 | J33: 80 | K33: 20 | M33: 24.8 | N33: Costanzo Pasqualina | O33: Coll RUP Aff. | P33: 4.8 | Q33: 0.06 | S33: 0
A34: 2020 | B34: 1273 | C34: 103 del 4/6/2020 | D34: ZA92D33D34 | E34: 200 WEBCAM (gara deserta) | F34: contratto non stipulato | H34: 5000 | I34: 100 | J34: 80 | K34: 20 | M34: 24.8 | N34: Costanzo Pasqualina | O34: Inc. pred. Doc. | P34: 4 | Q34: 0.05 | S34: 0
A35: 2020 | B35: 1273 | C35: 103 del 4/6/2020 | D35: ZA92D33D34 | E35: 200 WEBCAM (gara deserta) | F35: contratto non stipulato | H35: 5000 | I35: 100 | J35: 80 | K35: 20 | M35: 24.8 | N35: Costanzo Pasqualina | O35: Coll. Inc. pred. Doc. | P35: 8 | Q35: 0.1 | S35: 0
A36: 2020 | B36: 1273 | C36: 202 del 12/11/2020 | D36: 8511142092 | E36: Banca dati giuridica "Foro Italiano" | F36: 2021-01-01 | G36: 2021-12-31 | H36: 50000 | I36: 1000 | J36: 800 | K36: 200 | L36: =+M36 -> 248 | M36: =+P36+P37+P38+P39 -> 248 | N36: Costanzo Pasqualina | O36: Rup affidamento | P36: 80 | Q36: 0.1 | S36: 0
A37: 2020 | B37: 1273 | C37: 202 del 12/11/2020 | D37: 8511142092 | E37: Banca dati giuridica "Foro Italiano" | F37: 2021-01-01 | G37: 2021-12-31 | H37: 50000 | I37: 1000 | J37: 800 | K37: 200 | M37: 248 | N37: Costanzo Pasqualina | O37: Coll RUP Aff. | P37: 48 | Q37: 0.06 | S37: 0
A38: 2020 | B38: 1273 | C38: 202 del 12/11/2020 | D38: 8511142092 | E38: Banca dati giuridica "Foro Italiano" | F38: 2021-01-01 | G38: 2021-12-31 | H38: 50000 | I38: 1000 | J38: 800 | K38: 200 | M38: 248 | N38: Costanzo Pasqualina | O38: inc, pred. Doc. | P38: 40 | Q38: 0.05 | S38: 0
A39: 2020 | B39: 1273 | C39: 202 del 12/11/2020 | D39: 8511142092 | E39: Banca dati giuridica "Foro Italiano" | F39: 2021-01-01 | G39: 2021-12-31 | H39: 50000 | I39: 1000 | J39: 800 | K39: 200 | M39: 248 | N39: Costanzo Pasqualina | O39: Coll. inc, pred. Doc. | P39: 80 | Q39: 0.1 | S39: 0
A40: 2020 | B40: 1273 | C40: 224 del 2/12/2020 | D40: 85105648 | E40: Supporto SOLR | F40: 2021-01-01 | G40: 2022-12-31 | H40: 50000 | I40: 1000 | J40: =+(I40)*0.8 -> 800 | K40: =+(I40)*0.2 -> 200 | M40: =+P40+P41+P42+P43+P44+P45 -> 248 | N40: Arcoraci Eduardo | O40: Inc. Pred. Doc. | P40: 40 | Q40: 0.05 | S40: 0
A41: 2020 | B41: 1273 | C41: 225 del 2/12/2020 | D41: 85105649 | E41: Supporto SOLR | F41: 2021-01-01 | G41: 2022-12-31 | H41: 50000 | I41: 1000 | J41: 800 | K41: 200 | M41: 248 | N41: Cipriano Leonardo | O41: Coll. Inc. Pred. Doc. | P41: 24 | Q41: 0.03 | S41: 0
A42: 2020 | B42: 1273 | C42: 226 del 2/12/2020 | D42: 85105650 | E42: Supporto SOLR | F42: 2021-01-01 | G42: 2022-12-31 | H42: 50000 | I42: 1000 | J42: 800 | K42: 200 | L42: =+M42 -> 248 | M42: 248 | N42: Arcoraci Eduardo | O42: RUP Affidamento | P42: 80 | Q42: 0.1 | S42: 0
A43: 2020 | B43: 1273 | C43: 227 del 2/12/2020 | D43: 85105651 | E43: Supporto SOLR | F43: 2021-01-01 | G43: 2022-12-31 | H43: 50000 | I43: 1000 | J43: 800 | K43: 200 | M43: 248 | N43: Cipriano Leonardo | O43: Coll. RUP Affidamento | P43: 48 | Q43: 0.06 | S43: 0
A44: 2020 | B44: 1273 | C44: 224 del 2/12/2020 | D44: 85105648 | E44: Supporto SOLR | F44: 2021-01-01 | G44: 2022-12-31 | H44: 50000 | I44: 1000 | J44: 800 | K44: 200 | M44: 248 | N44: Arcoraci Eduardo | O44: Coll. Pred. Doc. | P44: 28 | Q44: 0.035 | S44: 0
A45: 2020 | B45: 1273 | C45: 224 del 2/12/2020 | D45: 85105648 | E45: Supporto SOLR | F45: 2021-01-01 | G45: 2022-12-31 | H45: 50000 | I45: 1000 | J45: 800 | K45: 200 | M45: 248 | N45: Cipriano Leonardo | O45: Coll. Pred. Doc. | P45: 28 | Q45: 0.035 | S45: 0
A46: 2020 | B46: 1273 | C46: 71 del 30/3/2020 | D46: ZA92C84625 | E46: Licenze Commvault | F46: 2020-03-29 | G46: 2022-03-28 | H46: 39500 | I46: 790 | J46: 632 | K46: 158 | L46: =+M46 -> 195.92 | M46: =+P46+P47+P48+P49 -> 195.92 | N46: Leonardo Cipriano | O46: Inc. Pred. Doc | P46: 31.6 | Q46: 0.05 | S46: 0
A47: 2020 | B47: 1273 | C47: 71 del 30/3/2020 | D47: ZA92C84625 | E47: Licenze Commvault | F47: 2020-03-29 | G47: 2022-03-28 | H47: 39500 | I47: 790 | J47: 632 | K47: 158 | M47: 195.92 | N47: Leonardo Cipriano | O47: Coll. Inc. Pred. Doc | P47: 63.2 | Q47: 0.1 | S47: 0
A48: 2020 | B48: 1273 | C48: 71 del 30/3/2020 | D48: ZA92C84625 | E48: Licenze Commvault | F48: 2020-03-29 | G48: 2022-03-28 | H48: 39500 | I48: 790 | J48: 632 | K48: 158 | M48: 195.92 | N48: Leonardo Cipriano | O48: RUP Affidamento | P48: 63.2 | Q48: 0.1 | S48: 0
A49: 2020 | B49: 1273 | C49: 71 del 30/3/2020 | D49: ZA92C84625 | E49: Licenze Commvault | F49: 2020-03-29 | G49: 2022-03-28 | H49: 39500 | I49: 790 | J49: 632 | K49: 158 | M49: 195.92 | N49: Leonardo Cipriano | O49: Coll RUP Aff. | P49: 37.92 | Q49: 0.06 | S49: 0
A50: 2020 | B50: 1273 | C50: 126 del 14/7/2020 | D50: 8440943684 | E50: Manutenzione apparati NETAPP | F50: 2020-11-01 | G50: 2022-04-30 | H50: 74500 | I50: 1490 | J50: 1192 | K50: 298 | L50: =+M50 -> 369.52 | M50: =+P50+P51+P52+P53 -> 369.52 | N50: Leonardo Cipriano | O50: Inc. Pred. Doc | P50: 59.6 | Q50: 0.05 | S50: 0
A51: 2020 | B51: 1273 | C51: 126 del 14/7/2020 | D51: 8440943684 | E51: Manutenzione apparati NETAPP | F51: 2020-11-01 | G51: 2022-04-30 | H51: 74500 | I51: 1490 | J51: 1192 | K51: 298 | M51: 369.52 | N51: Leonardo Cipriano | O51: Coll. Inc. Pred. Doc | P51: 119.2 | Q51: 0.1 | S51: 0
A52: 2020 | B52: 1273 | C52: 126 del 14/7/2020 | D52: 8440943684 | E52: Manutenzione apparati NETAPP | F52: 2020-11-01 | G52: 2022-04-30 | H52: 74500 | I52: 1490 | J52: 1192 | K52: 298 | M52: 369.52 | N52: Leonardo Cipriano | O52: RUP Affidamento | P52: 119.2 | Q52: 0.1 | S52: 0
A53: 2020 | B53: 1273 | C53: 126 del 14/7/2020 | D53: 8440943684 | E53: Manutenzione apparati NETAPP | F53: 2020-11-01 | G53: 2022-04-30 | H53: 74500 | I53: 1490 | J53: 1192 | K53: 298 | M53: 369.52 | N53: Leonardo Cipriano | O53: Coll RUP Aff. | P53: 71.52 | Q53: 0.06 | S53: 0
A54: 2020 | B54: 1273 | C54: 111 del 22/6/2020 | D54: 8346744F08 | E54: Licenze d’uso Microsoft Enterprise Agreement | F54: 2020-07-01 | G54: 2023-06-30 | H54: 697887 | I54: =+H54*1.9% -> 13259.853 | J54: 10607.8824 | K54: 2651.9706 | L54: =+M54 -> 1485.103536 | M54: =+P54+P55+P56+P57 -> 1485.103536 | N54: Leonardo Cipriano | O54: Inc. Pred. Doc | P54: 212.157648 | Q54: 0.02 | S54: 0
A55: 2020 | B55: 1273 | C55: 111 del 22/6/2020 | D55: 8346744F08 | E55: Licenze d’uso Microsoft Enterprise Agreement | F55: 2020-07-01 | G55: 2023-06-30 | H55: 697887 | I55: 13259.853 | J55: =+(I55)*0.8 -> 10607.8824 | K55: 2651.9706 | M55: 1485.1 | N55: Roberta Testa | O55: Coll. Inc. Pred. Doc | P55: 106.078824 | Q55: 0.01 | S55: 0
A56: 2020 | B56: 1273 | C56: 111 del 22/6/2020 | D56: 8346744F08 | E56: Licenze d’uso Microsoft Enterprise Agreement | F56: 2020-07-01 | G56: 2023-06-30 | H56: 697887 | I56: 13259.853 | J56: 10607.8824 | K56: 2651.9706 | M56: 1485.1 | N56: Leonardo Cipriano | O56: RUP Affidamento | P56: 848.630592 | Q56: 0.08 | S56: 0
A57: 2020 | B57: 1273 | C57: 111 del 22/6/2020 | D57: 8346744F08 | E57: Licenze d’uso Microsoft Enterprise Agreement | F57: 2020-07-01 | G57: 2023-06-30 | H57: 697887 | I57: 13259.853 | J57: 10607.8824 | K57: 2651.9706 | M57: 1485.1 | N57: Cristiana Querqui | O57: Coll RUP Aff. | P57: 318.236472 | Q57: 0.03 | S57: 0
A58: 2020 | B58: 1273 | C58: 125 del 14/7/2020 | D58: 8371349FB8 | E58: Fornitura integrativa Licenze Enterprise Agreement | F58: 2020-09-01 | G58: 2023-06-30 | H58: 366894 | I58: 6970.986 | J58: =+(I58)*0.8 -> 5576.7888 | K58: 1394.1972 | L58: =+M58 -> 780.750432 | M58: =+P58+P59+P60+P61 -> 780.750432 | N58: Leonardo Cipriano | O58: Inc. Pred. Doc | P58: 111.535776 | Q58: 0.02 | S58: 0
A59: 2020 | B59: 1273 | C59: 125 del 14/7/2020 | D59: 8371349FB8 | E59: Fornitura integrativa Licenze Enterprise Agreement | F59: 2020-09-01 | G59: 2023-06-30 | H59: 366894 | I59: 6970.986 | J59: 5576.7888 | K59: 1394.1972 | M59: 780.75 | N59: Roberta Testa | O59: Coll. Inc. Pred. Doc | P59: 55.767888 | Q59: 0.01 | S59: 0
A60: 2020 | B60: 1273 | C60: 125 del 14/7/2020 | D60: 8371349FB8 | E60: Fornitura integrativa Licenze Enterprise Agreement | F60: 2020-09-01 | G60: 2023-06-30 | H60: 366894 | I60: 6970.986 | J60: 5576.7888 | K60: 1394.1972 | M60: 780.75 | N60: Leonardo Cipriano | O60: RUP Affidamento | P60: 446.143104 | Q60: 0.08 | S60: 0
A61: 2020 | B61: 1273 | C61: 125 del 14/7/2020 | D61: 8371349FB8 | E61: Fornitura integrativa Licenze Enterprise Agreement | F61: 2020-09-01 | G61: 2023-06-30 | H61: 366894 | I61: 6970.986 | J61: 5576.7888 | K61: 1394.1972 | M61: 780.75 | N61: Roberta Testa | O61: Coll RUP Aff. | P61: 167.303664 | Q61: 0.03 | S61: 0
A62: 2020 | B62: 1273 | C62: 31 del 13/2/2020 | D62: 821046520F | E62: Manutenzione software VMWARE e servizio di supporto | F62: 2020-07-20 | G62: 2022-07-19 | H62: 126000 | I62: 2520 | J62: =+(I62)*0.8 -> 2016 | K62: =+(I62)*0.2 -> 504 | L62: =+M62 -> 624.96 | M62: =+P62+P63+P64+P65 -> 624.96 | N62: Leonardo Cipriano | O62: Inc. Pred. Doc | P62: 100.8 | Q62: 0.05 | S62: 0
A63: 2020 | B63: 1273 | C63: 31 del 13/2/2020 | D63: 821046520F | E63: Manutenzione software VMWARE e servizio di supporto | F63: 2020-07-20 | G63: 2022-07-19 | H63: 126000 | I63: 2520 | J63: 2016 | K63: =+(I63)*0.2 -> 504 | M63: 624.96 | N63: Leonardo Cipriano | O63: Coll. Inc. Pred. Doc | P63: 201.6 | Q63: 0.1 | S63: 0
A64: 2020 | B64: 1273 | C64: 31 del 13/2/2020 | D64: 821046520F | E64: Manutenzione software VMWARE e servizio di supporto | F64: 2020-07-20 | G64: 2022-07-19 | H64: 126000 | I64: 2520 | J64: 2016 | K64: =+(I64)*0.2 -> 504 | M64: 624.96 | N64: Leonardo Cipriano | O64: RUP Affidamento | P64: =+J64*Q64 -> 201.6 | Q64: 0.1 | S64: 0
A65: 2020 | B65: 1273 | C65: 31 del 13/2/2020 | D65: 821046520F | E65: Manutenzione software VMWARE e servizio di supporto | F65: 2020-07-20 | G65: 2022-07-19 | H65: 126000 | I65: 2520 | J65: 2016 | K65: 504 | M65: 624.96 | N65: Leonardo Cipriano | O65: Coll RUP Aff. | P65: 120.96 | Q65: 0.06 | S65: 0
A66: 2019 | B66: 1273 | C66: 208 del 28/11/2019 | D66: Z592ADF45F | E66: Materiale informatico e di facile consumo (gara deserta) | F66: contratto non stipulato | H66: 32000 | I66: 640 | J66: 512 | K66: =+(I66)*0.2 -> 128 | L66: =+M66 -> 158.72 | M66: =+P66+P67+P68+P69 -> 158.72 | N66: Roberta Testa | O66: Inc. Pred. Doc | P66: 25.6 | Q66: 0.05 | S66: 0
A67: 2019 | B67: 1273 | C67: 208 del 28/11/2019 | D67: Z592ADF45F | E67: Materiale informatico e di facile consumo (gara deserta) | F67: contratto non stipulato | H67: 32000 | I67: 640 | J67: 512 | K67: =+(I67)*0.2 -> 128 | M67: 158.72 | N67: Querqui Cristiana | O67: Coll. Inc. Pred. Doc | P67: 51.2 | Q67: 0.1 | S67: 0
A68: 2019 | B68: 1273 | C68: 208 del 28/11/2019 | D68: Z592ADF45F | E68: Materiale informatico e di facile consumo (gara deserta) | F68: contratto non stipulato | H68: 32000 | I68: 640 | J68: 512 | K68: =+(I68)*0.2 -> 128 | M68: 158.72 | N68: Roberta Testa | O68: RUP Affidamento | P68: 51.2 | Q68: 0.1 | S68: 0
A69: 2019 | B69: 1273 | C69: 208 del 28/11/2019 | D69: Z592ADF45F | E69: Materiale informatico e di facile consumo (gara deserta) | F69: contratto non stipulato | H69: 32000 | I69: 640 | J69: 512 | K69: 128 | M69: 158.72 | N69: Querqui Cristiana | O69: Coll RUP Aff. | P69: 30.72 | Q69: 0.06 | S69: 0
A70: 2020 | B70: 1273 | C70: 16 del 28/1/2020 | D70: Z132BC1806 | E70: Materiale informatico di facile consumo + toner x stampanti | F70: 15 gg dalla stipula contratto | H70: 35500 | I70: 710 | J70: 568 | K70: 142 | L70: =+M70 -> 176.08 | M70: =+P70+P71+P72+P73 -> 176.08 | N70: Roberta Testa | O70: Inc. Pred. Doc | P70: 28.4 | Q70: 0.05 | S70: 0
A71: 2020 | B71: 1273 | C71: 16 del 28/1/2020 | D71: Z132BC1806 | E71: Materiale informatico di facile consumo + toner x stampanti | F71: 15 gg dalla stipula contratto | H71: 35500 | I71: 710 | J71: 568 | K71: 142 | M71: 176.08 | N71: Querqui Cristiana | O71: Coll. Inc. Pred. Doc | P71: 56.8 | Q71: 0.1 | S71: 0
A72: 2020 | B72: 1273 | C72: 16 del 28/1/2020 | D72: Z132BC1806 | E72: Materiale informatico di facile consumo + toner x stampanti | F72: 15 gg dalla stipula contratto | H72: 35500 | I72: 710 | J72: 568 | K72: 142 | M72: 176.08 | N72: Roberta Testa | O72: RUP Affidamento | P72: 56.8 | Q72: 0.1 | S72: 0
A73: 2020 | B73: 1273 | C73: 16 del 28/1/2020 | D73: Z132BC1806 | E73: Materiale informatico di facile consumo + toner x stampanti | F73: 15 gg dalla stipula contratto | H73: 35500 | I73: 710 | J73: 568 | K73: =+(I73)*0.2 -> 142 | M73: 176.08 | N73: Querqui Cristiana | O73: Coll RUP Aff. | P73: 34.08 | Q73: 0.06 | S73: 0
A74: 2020 | B74: 1273 | C74: 225 del 2/12/2020 | D74: ZF02F88E71 | E74: Licenze software Dragon Professional 15 | F74: 7 gg dalla stipula del contratto | H74: 12500 | I74: 250 | J74: 200 | K74: 50 | L74: =+M74 -> 62 | M74: =+P74+P75+P76+P77 -> 62 | N74: Roberta Testa | O74: Inc. Pred. Doc | P74: 10 | Q74: 0.05 | S74: 0
A75: 2020 | B75: 1273 | C75: 225 del 2/12/2020 | D75: ZF02F88E71 | E75: Licenze software Dragon Professional 15 | F75: 7 gg dalla stipula del contratto | H75: 12500 | I75: 250 | J75: 200 | K75: 50 | M75: 62 | N75: Querqui Cristiana | O75: Coll. Inc. Pred. Doc | P75: 20 | Q75: 0.1 | S75: 0
A76: 2020 | B76: 1273 | C76: 225 del 2/12/2020 | D76: ZF02F88E71 | E76: Licenze software Dragon Professional 15 | F76: 7 gg dalla stipula del contratto | H76: 12500 | I76: 250 | J76: 200 | K76: 50 | M76: 62 | N76: Roberta Testa | O76: RUP Affidamento | P76: 20 | Q76: 0.1 | S76: 0
A77: 2020 | B77: 1273 | C77: 225 del 2/12/2020 | D77: ZF02F88E71 | E77: Licenze software Dragon Professional 15 | F77: 7 gg dalla stipula del contratto | H77: 12500 | I77: 250 | J77: 200 | K77: 50 | M77: 62 | N77: Querqui Cristiana | O77: Coll RUP Aff. | P77: 12 | Q77: 0.06 | S77: 0
A78: 2020 | B78: 1273 | C78: 95 del 15/5/2020 | D78: 830379191A | E78: Licenze Oracle | F78: 2020-05-30 | G78: 2022-05-29 | H78: 199017.6 | I78: 3980.35 | J78: 3184.28 | K78: 796.07 | L78: =+M78 -> 987.1268 | M78: =+P78+P79+P80+P81 -> 987.1268 | N78: Roberta Testa | O78: Inc. Pred. Doc | P78: 159.214 | Q78: 0.05 | S78: 0
A79: 2020 | B79: 1273 | C79: 95 del 15/5/2020 | D79: 830379191A | E79: Licenze Oracle | F79: 2020-05-30 | G79: 2022-05-29 | H79: 199017.6 | I79: 3980.35 | J79: 3184.28 | K79: 796.07 | M79: 987.13 | N79: Querqui Cristiana | O79: Coll. Inc. Pred. Doc | P79: 318.428 | Q79: 0.1 | S79: 0
A80: 2020 | B80: 1273 | C80: 95 del 15/5/2020 | D80: 830379191A | E80: Licenze Oracle | F80: 2020-05-30 | G80: 2022-05-29 | H80: 199017.6 | I80: 3980.35 | J80: 3184.28 | K80: 796.07 | M80: 987.13 | N80: Roberta Testa | O80: RUP Affidamento | P80: 318.428 | Q80: 0.1 | S80: 0
A81: 2020 | B81: 1273 | C81: 95 del 15/5/2020 | D81: 830379191A | E81: Licenze Oracle | F81: 2020-05-30 | G81: 2022-05-29 | H81: 199017.6 | I81: 3980.35 | J81: 3184.28 | K81: 796.07 | M81: 987.13 | N81: Querqui Cristiana | O81: Coll RUP Aff. | P81: 191.0568 | Q81: 0.06 | S81: 0
A82: 2020 | B82: 1273 | C82: 210 del 18/11/2020 | D82: 8512621513 | E82: Licenze Software power pdf advanced 4.0 | F82: 7 gg dalla stipula del contratto | H82: 74900 | I82: 1498 | J82: 1198.4 | K82: 299.6 | L82: =+M82 -> 371.504 | M82: =+P82+P83+P84+P85 -> 371.504 | N82: Roberta Testa | O82: Inc. Pred. Doc | P82: 59.92 | Q82: 0.05 | S82: 0
A83: 2020 | B83: 1273 | C83: 210 del 18/11/2020 | D83: 8512621513 | E83: Licenze Software power pdf advanced 4.0 | F83: 7 gg dalla stipula del contratto | H83: 74900 | I83: 1498 | J83: 1198.4 | K83: 299.6 | M83: 371.5 | N83: Querqui Cristiana | O83: Coll. Inc. Pred. Doc | P83: 119.84 | Q83: 0.1 | S83: 0
A84: 2020 | B84: 1273 | C84: 210 del 18/11/2020 | D84: 8512621513 | E84: Licenze Software power pdf advanced 4.0 | F84: 7 gg dalla stipula del contratto | H84: 74900 | I84: 1498 | J84: 1198.4 | K84: 299.6 | M84: 371.5 | N84: Roberta Testa | O84: RUP Affidamento | P84: 119.84 | Q84: 0.1 | S84: 0
A85: 2020 | B85: 1273 | C85: 210 del 18/11/2020 | D85: 8512621513 | E85: Licenze Software power pdf advanced 4.0 | F85: 7 gg dalla stipula del contratto | H85: 74900 | I85: 1498 | J85: 1198.4 | K85: 299.6 | M85: 371.5 | N85: Querqui Cristiana | O85: Coll RUP Aff. | P85: 71.904 | Q85: 0.06 | S85: 0
A86: 2020 | B86: 1273 | C86: 75 del 1/4/2020 | D86: 826368723E | E86: Microsoft Services Premier Support | F86: 2020-06-22 | G86: 2021-06-21 | H86: 66500 | I86: 1330 | J86: 1064 | K86: =+(I86)*0.2 -> 266 | L86: =+M86 -> 329.84 | M86: =+P86+P87+P88+P89 -> 329.84 | N86: Roberta Testa | O86: Inc. Pred. Doc | P86: 53.2 | Q86: 0.05 | S86: 0
A87: 2020 | B87: 1273 | C87: 75 del 1/4/2020 | D87: 826368723E | E87: Microsoft Services Premier Support | F87: 2020-06-22 | G87: 2021-06-21 | H87: 66500 | I87: 1330 | J87: 1064 | K87: =+(I87)*0.2 -> 266 | M87: 329.84 | N87: Querqui Cristiana | O87: Coll. Inc. Pred. Doc | P87: 106.4 | Q87: 0.1 | S87: 0
A88: 2020 | B88: 1273 | C88: 75 del 1/4/2020 | D88: 826368723E | E88: Microsoft Services Premier Support | F88: 2020-06-22 | G88: 2021-06-21 | H88: 66500 | I88: 1330 | J88: 1064 | K88: =+(I88)*0.2 -> 266 | M88: 329.84 | N88: Roberta Testa | O88: RUP Affidamento | P88: 106.4 | Q88: 0.1 | S88: 0
A89: 2020 | B89: 1273 | C89: 75 del 1/4/2020 | D89: 826368723E | E89: Microsoft Services Premier Support | F89: 2020-06-22 | G89: 2021-06-21 | H89: 66500 | I89: 1330 | J89: 1064 | K89: 266 | M89: 329.84 | N89: Querqui Cristiana | O89: Coll RUP Aff. | P89: 63.84 | Q89: 0.06 | S89: 0
A90: 2020 | B90: 1273 | C90: 45 del 28/02/2020 | D90: 822693270D | E90: affidamento dei servizi di posta elettronica certificata (PEC)” | F90: 36 mesi dal 12/03/2020 | H90: 113063.4 | I90: =+H90*0.02 -> 2261.268 | J90: 1809.0144 | K90: 452.2536 | L90: =+M90 -> 560.79 | M90: =+P90+P91+P92+P93 -> 560.79 | N90: Querqui Cristiana | O90: Inc. Pred. Doc | P90: 90.45 | Q90: 0.05 | S90: 0
A91: 2020 | B91: 1273 | C91: 45 del 28/02/2020 | D91: 822693270D | E91: affidamento dei servizi di posta elettronica certificata (PEC)” | F91: 36 mesi dal 12/03/2020 | H91: 113063.4 | I91: =+H91*0.02 -> 2261.268 | J91: 1809.0144 | K91: =+(I91)*0.2 -> 452.2536 | M91: 560.79 | N91: Querqui Cristiana | O91: Coll. Inc. Pred. Doc | P91: 180.9 | Q91: 0.1 | S91: 0
A92: 2020 | B92: 1273 | C92: 45 del 28/02/2020 | D92: 822693270D | E92: affidamento dei servizi di posta elettronica certificata (PEC)” | F92: 36 mesi dal 12/03/2020 | H92: 113063.4 | I92: =+H92*0.02 -> 2261.268 | J92: 1809.0144 | K92: 452.2536 | M92: 560.79 | N92: Querqui Cristiana | O92: RUP Affidamento | P92: 180.9 | Q92: 0.1 | S92: 0
A93: 2020 | B93: 1273 | C93: 45 del 28/02/2020 | D93: 822693270D | E93: affidamento dei servizi di posta elettronica certificata (PEC)” | F93: 36 mesi dal 12/03/2020 | H93: 113063.4 | I93: =+H93*0.02 -> 2261.268 | J93: 1809.0144 | K93: 452.2536 | M93: 560.79 | N93: Querqui Cristiana | O93: Coll RUP Aff. | P93: 108.54 | Q93: 0.06 | S93: 0
A94: 2020 | B94: 1273 | C94: 207 del 17/11/2020 | D94: 78024143b8 | E94: acquisto, in adesione alla Convenzione Consip Licenze Software Multibrand 2 - Lotto 4, delle licenze Red Hut | F94: 10 gg stipula contratto | H94: 992886.78 | I94: =+H94*1.9% -> 18864.84882 | J94: =+(I94)*0.8 -> 15091.87906 | K94: 3772.969764 | L94: =+M94 -> 2112.863068 | M94: =+P94+P95+P96+P97 -> 2112.863068 | N94: Querqui Cristiana | O94: Inc. Pred. Doc | P94: =+J94*Q94 -> 301.8375811 | Q94: 0.02 | S94: 0
A95: 2020 | B95: 1273 | C95: 207 del 17/11/2020 | D95: 78024143b8 | E95: acquisto, in adesione alla Convenzione Consip Licenze Software Multibrand 2 - Lotto 4, delle licenze Red Hut | F95: 10 gg stipula contratto | H95: 992886.78 | I95: =+H95*1.9% -> 18864.84882 | J95: 15091.87906 | K95: 3772.969764 | M95: 2112.86 | N95: Leonardo Cipriano | O95: Coll. Inc. Pred. Doc | P95: 150.9187906 | Q95: 0.01 | S95: 0
A96: 2020 | B96: 1273 | C96: 207 del 17/11/2020 | D96: 78024143b8 | E96: acquisto, in adesione alla Convenzione Consip Licenze Software Multibrand 2 - Lotto 4, delle licenze Red Hut | F96: 10 gg stipula contratto | H96: 992886.78 | I96: =+H96*1.9% -> 18864.84882 | J96: 15091.87906 | K96: 3772.969764 | M96: 2112.86 | N96: Querqui Cristiana | O96: RUP Affidamento | P96: 1207.350324 | Q96: 0.08 | S96: 0
A97: 2020 | B97: 1273 | C97: 207 del 17/11/2020 | D97: 78024143b8 | E97: acquisto, in adesione alla Convenzione Consip Licenze Software Multibrand 2 - Lotto 4, delle licenze Red Hut | F97: 10 gg stipula contratto | H97: 992886.78 | I97: =+H97*1.9% -> 18864.84882 | J97: 15091.87906 | K97: 3772.969764 | M97: 2112.86 | N97: Leonardo Cipriano | O97: Coll RUP Aff. | P97: 452.7563717 | Q97: 0.03 | S97: 0
A98: 2020 | B98: 1273 | C98: 204 del 13/11/2020 | D98: 8516799CDC | E98: affidamento, in adesione alla Convenzione Consip MSEA5 della fornitura di 500 licenze Microsoft O365 E1 | F98: 31 mesi dal 01/12/2020 | H98: 64480 | I98: =+H98*0.02 -> 1289.6 | J98: 1031.68 | K98: 257.92 | L98: =+M98 -> 144.4352 | M98: =+P98+P99+P100+P101 -> 144.4352 | N98: Querqui Cristiana | O98: Inc. Pred. Doc | P98: 20.6336 | Q98: 0.02 | S98: 0
A99: 2020 | B99: 1273 | C99: 204 del 13/11/2020 | D99: 8516799CDC | E99: affidamento, in adesione alla Convenzione Consip MSEA5 della fornitura di 500 licenze Microsoft O365 E1 | F99: 31 mesi dal 01/12/2020 | H99: 64480 | I99: =+H99*0.02 -> 1289.6 | J99: 1031.68 | K99: 257.92 | M99: 144.44 | N99: Querqui Cristiana | O99: Coll. Inc. Pred. Doc | P99: 10.3168 | Q99: 0.01 | S99: 0
A100: 2020 | B100: 1273 | C100: 204 del 13/11/2020 | D100: 8516799CDC | E100: affidamento, in adesione alla Convenzione Consip MSEA5 della fornitura di 500 licenze Microsoft O365 E1 | F100: 31 mesi dal 01/12/2020 | H100: 64480 | I100: =+H100*0.02 -> 1289.6 | J100: 1031.68 | K100: 257.92 | M100: 144.44 | N100: Querqui Cristiana | O100: RUP Affidamento | P100: 82.5344 | Q100: 0.08 | S100: 0
A101: 2020 | B101: 1273 | C101: 204 del 13/11/2020 | D101: 8516799CDC | E101: affidamento, in adesione alla Convenzione Consip MSEA5 della fornitura di 500 licenze Microsoft O365 E1 | F101: 31 mesi dal 01/12/2020 | H101: 64480 | I101: =+H101*0.02 -> 1289.6 | J101: 1031.68 | K101: 257.92 | M101: 144.44 | N101: Querqui Cristiana | O101: Coll RUP Aff. | P101: 30.9504 | Q101: 0.03 | S101: 0
A102: 2020 | B102: 1273 | C102: 220 del 27/11/2020 | D102: 8535118A2E | E102: Affidamento del servizio di consultazione di durata biennale di banche dati giuridiche leggi d’Italia | F102: 2021-01-01 | G102: 2022-12-31 | H102: 370000 | I102: =+H102*1.9% -> 7030 | J102: 5624 | K102: 1406 | L102: =+M102 -> 1743.44 | M102: =+P102+P103+P104+P105 -> 1743.44 | N102: Querqui Cristiana | O102: Inc. Pred. Doc | P102: 281.2 | Q102: 0.05 | S102: 0
A103: 2020 | B103: 1273 | C103: 220 del 27/11/2020 | D103: 8535118A2E | E103: Affidamento del servizio di consultazione di durata biennale di banche dati giuridiche leggi d’Italia | F103: 2021-01-01 | G103: 2022-12-31 | H103: 370000 | I103: 7030 | J103: 5624 | K103: 1406 | M103: 1743.44 | N103: Querqui Cristiana | O103: Coll. Inc. Pred. Doc | P103: =+J102*Q103 -> 562.4 | Q103: 0.1 | S103: 0
A104: 2020 | B104: 1273 | C104: 220 del 27/11/2020 | D104: 8535118A2E | E104: Affidamento del servizio di consultazione di durata biennale di banche dati giuridiche leggi d’Italia | F104: 2021-01-01 | G104: 2022-12-31 | H104: 370000 | I104: 7030 | J104: 5624 | K104: 1406 | M104: 1743.44 | N104: Querqui Cristiana | O104: RUP Affidamento | P104: =+J102*Q104 -> 562.4 | Q104: 0.1 | S104: 0
A105: 2020 | B105: 1273 | C105: 220 del 27/11/2020 | D105: 8535118A2E | E105: Affidamento del servizio di consultazione di durata biennale di banche dati giuridiche leggi d’Italia | F105: 2021-01-01 | G105: 2022-12-31 | H105: 370000 | I105: 7030 | J105: 5624 | K105: 1406 | M105: 1743.44 | N105: Querqui Cristiana | O105: Coll RUP Aff. | P105: =+J102*Q105 -> 337.44 | Q105: 0.06 | S105: 0
A106: 2019 | B106: 1273 | C106: 219 del 09/12/2019 | D106: 8131659948 | E106: Servizio assistenza e manutenzione server DELL (gara 2019 aggiudicata nel 2020 - determina 51 del 03/03/2020) | F106: 24 dalla data verbale fornitura | H106: 85000 | I106: =+H106*0.02 -> 1700 | J106: 1360 | K106: 340 | L106: =+M106 -> 421.6 | M106: =+P106+P107+P108+P109 -> 421.6 | N106: Querqui Cristiana | O106: Inc. Pred. Doc | P106: =+J106*Q106 -> 68 | Q106: 0.05 | S106: 0
A107: 2019 | B107: 1273 | C107: 219 del 09/12/2019 | D107: 8131659948 | E107: Servizio assistenza e manutenzione server DELL (gara 2019 aggiudicata nel 2020 - determina 51 del 03/03/2020) | F107: 24 dalla data verbale fornitura | H107: 85000 | I107: =+H107*0.02 -> 1700 | J107: 1360 | K107: 340 | M107: 421.6 | N107: Querqui Cristiana | O107: Coll. Inc. Pred. Doc | P107: 136 | Q107: 0.1 | S107: 0
A108: 2019 | B108: 1273 | C108: 219 del 09/12/2019 | D108: 8131659948 | E108: Servizio assistenza e manutenzione server DELL (gara 2019 aggiudicata nel 2020 - determina 51 del 03/03/2020) | F108: 24 dalla data verbale fornitura | H108: 85000 | I108: =+H108*0.02 -> 1700 | J108: 1360 | K108: 340 | M108: 421.6 | N108: Querqui Cristiana | O108: RUP Affidamento | P108: 136 | Q108: 0.1 | S108: 0
A109: 2019 | B109: 1273 | C109: 219 del 09/12/2019 | D109: 8131659948 | E109: Servizio assistenza e manutenzione server DELL (gara 2019 aggiudicata nel 2020 - determina 51 del 03/03/2020) | F109: 24 dalla data verbale fornitura | H109: 85000 | I109: =+H109*0.02 -> 1700 | J109: 1360 | K109: 340 | M109: 421.6 | N109: Querqui Cristiana | O109: Coll RUP Aff. | P109: 81.6 | Q109: 0.06 | S109: 0
A110: 2019 | B110: 4250 | C110: 201 DEL 19/11/2019 | D110: 810805202E | E110: Acquisto di n. 100 notebook 14’’ disponibili in convenzione Consip “PC Portatili e tablet 3 | F110: 30GG DALLA ATTIVAZIONE DELLA CONVENZIONE | H110: 42230 | I110: =+H110*0.02 -> 844.6 | J110: =+(I110)*0.8 -> 675.68 | K110: =+(I110)*0.2 -> 168.92 | L110: =+M110 -> 94.5952 | M110: =+P110+P112+P111+P113 -> 94.5952 | O110: Inc. Pred. Doc | P110: 13.5136 | Q110: 0.02
A111: 2019 | B111: 4250 | C111: 201 DEL 19/11/2019 | D111: 810805202E | E111: Acquisto di n. 100 notebook 14’’ disponibili in convenzione Consip “PC Portatili e tablet 3 | F111: 30GG DALLA ATTIVAZIONE DELLA CONVENZIONE | H111: 42230 | I111: =+H111*0.02 -> 844.6 | J111: =+(I111)*0.8 -> 675.68 | K111: =+(I111)*0.2 -> 168.92 | M111: =+M110 -> 94.5952 | O111: Coll. Inc. Pred. Doc | P111: 6.7568 | Q111: 0.01
A112: 2019 | B112: 4250 | C112: 201 DEL 19/11/2019 | D112: 810805202E | E112: Acquisto di n. 100 notebook 14’’ disponibili in convenzione Consip “PC Portatili e tablet 3 | F112: 30GG DALLA ATTIVAZIONE DELLA CONVENZIONE | H112: 42230 | I112: 844.6 | J112: 675.68 | K112: 168.92 | M112: =+M111 -> 94.5952 | O112: RUP Affidamento | P112: 54.0544 | Q112: 0.08
A113: 2019 | B113: 4250 | C113: 201 DEL 19/11/2019 | D113: 810805202E | E113: Acquisto di n. 100 notebook 14’’ disponibili in convenzione Consip “PC Portatili e tablet 3 | F113: 30GG DALLA ATTIVAZIONE DELLA CONVENZIONE | H113: 42230 | I113: 844.6 | J113: 675.68 | K113: 168.92 | M113: 94.5952 | O113: Coll RUP Aff. | P113: 20.2704 | Q113: 0.03
A114: 2019 | B114: 4250 | C114: 200 del 19/11/2019 | D114: Z942AB4642 | E114: Acquisto SCANNER DOCUMENTALI A4 DI TIPO DESKTOP PER UFFICI GAvideoproiettori per SPI | F114: 10 gg lavorativi dalla stipula (05/12/2019) | H114: 7000 | I114: 140 | J114: 112 | K114: 28 | L114: =+M114 -> 34.72 | M114: =+P114+P115+P116+P117 -> 34.72 | O114: Inc. Pred. Doc | P114: 5.6 | Q114: 0.05
A115: 2019 | B115: 4250 | C115: 200 del 19/11/2019 | D115: Z942AB4642 | E115: Acquisto SCANNER DOCUMENTALI A4 DI TIPO DESKTOP PER UFFICI GAvideoproiettori per SPI | F115: 10 gg lavorativi dalla stipula (05/12/2019) | H115: 7000 | I115: 140 | J115: 112 | K115: 28 | M115: =+M114 -> 34.72 | O115: Coll. Inc. Pred. Doc | P115: =+J115*Q115 -> 11.2 | Q115: 0.1
A116: 2019 | B116: 4250 | C116: 200 del 19/11/2019 | D116: Z942AB4642 | E116: Acquisto SCANNER DOCUMENTALI A4 DI TIPO DESKTOP PER UFFICI GAvideoproiettori per SPI | F116: 10 gg lavorativi dalla stipula (05/12/2019) | H116: 7000 | I116: 140 | J116: 112 | K116: 28 | M116: =+M115 -> 34.72 | O116: RUP Affidamento | P116: 11.2 | Q116: 0.1
A117: 2019 | B117: 4250 | C117: 200 del 19/11/2019 | D117: Z942AB4642 | E117: Acquisto SCANNER DOCUMENTALI A4 DI TIPO DESKTOP PER UFFICI GAvideoproiettori per SPI | F117: 10 gg lavorativi dalla stipula (05/12/2019) | H117: 7000 | I117: 140 | J117: 112 | K117: 28 | M117: 34.72 | O117: Coll RUP Aff. | P117: 6.72 | Q117: 0.06
A118: 2019 | B118: 4250 | C118: 216 del 05/12/2019 | D118: Z4F2AFF276 | E118: Acquisto videoproiettori per SPI | F118: 20 gg lavorativi dalla stipula (19/12/2019 | H118: 7300 | I118: 146 | J118: =+(I118)*0.8 -> 116.8 | K118: =+(I118)*0.2 -> 29.2 | L118: =+M118 -> 36.208 | M118: =+P118+P119+P120+P121 -> 36.208 | O118: Inc. Pred. Doc | P118: =+J118*Q118 -> 5.84 | Q118: 0.05
A119: 2019 | B119: 4250 | C119: 216 del 05/12/2019 | D119: Z4F2AFF276 | E119: Acquisto videoproiettori per SPI | F119: 20 gg lavorativi dalla stipula (19/12/2019 | H119: 7300 | I119: 146 | J119: 116.8 | K119: 29.2 | M119: =+M118 -> 36.208 | O119: Coll. Inc. Pred. Doc | P119: =+J119*Q119 -> 11.68 | Q119: 0.1
A120: 2019 | B120: 4250 | C120: 216 del 05/12/2019 | D120: Z4F2AFF276 | E120: Acquisto videoproiettori per SPI | F120: 20 gg lavorativi dalla stipula (19/12/2019 | H120: 7300 | I120: 146 | J120: 116.8 | K120: 29.2 | M120: =+M119 -> 36.208 | O120: RUP Affidamento | P120: 11.68 | Q120: 0.1
A121: 2019 | B121: 4250 | C121: 216 del 05/12/2019 | D121: Z4F2AFF276 | E121: Acquisto videoproiettori per SPI | F121: 20 gg lavorativi dalla stipula (19/12/2019 | H121: 7300 | I121: 146 | J121: 116.8 | K121: 29.2 | M121: 36.208 | O121: Coll RUP Aff. | P121: 7.008 | Q121: 0.06
A122: 2019 | B122: 4250 | C122: 198 DEL 14/11/2019 | D122: Z7B2AA0E98 | E122: ACQUISTO PC DESKTOP PER UFFICI GA | F122: 45 GG lavorativi dalla stipula (02/12/2019 | H122: 31080 | I122: 621.6 | J122: =+(I122)*0.8 -> 497.28 | K122: =+(I122)*0.2 -> 124.32 | L122: =+M122 -> 154.1568 | M122: =+P122+P123+P124+P125 -> 154.1568 | O122: Inc. Pred. Doc | P122: =+J122*Q122 -> 24.864 | Q122: 0.05
A123: 2019 | B123: 4250 | C123: 198 DEL 14/11/2019 | D123: Z7B2AA0E98 | E123: ACQUISTO PC DESKTOP PER UFFICI GA | F123: 45 GG lavorativi dalla stipula (02/12/2019 | H123: 31080 | I123: 621.6 | J123: =+(I123)*0.8 -> 497.28 | K123: =+(I123)*0.2 -> 124.32 | M123: =+M122 -> 154.1568 | O123: Coll. Inc. Pred. Doc | P123: =+J123*Q123 -> 49.728 | Q123: 0.1
A124: 2019 | B124: 4250 | C124: 198 DEL 14/11/2019 | D124: Z7B2AA0E98 | E124: ACQUISTO PC DESKTOP PER UFFICI GA | F124: 45 GG lavorativi dalla stipula (02/12/2019 | H124: 31080 | I124: 621.6 | J124: 497.28 | K124: 124.32 | M124: =+M123 -> 154.1568 | O124: RUP Affidamento | P124: 49.728 | Q124: 0.1
A125: 2019 | B125: 4250 | C125: 198 DEL 14/11/2019 | D125: Z7B2AA0E98 | E125: ACQUISTO PC DESKTOP PER UFFICI GA | F125: 45 GG lavorativi dalla stipula (02/12/2019 | H125: 31080 | I125: 621.6 | J125: 497.28 | K125: 124.32 | M125: 154.1568 | O125: Coll RUP Aff. | P125: 29.8368 | Q125: 0.06
A126: 2019 | B126: 4250 | C126: 197 DEL 13/11/2019 | D126: Z6D2A9B971 | E126: Fornitura di n. 4 Server NAS tipo desktop | F126: 20 gg lavorativi dalla stipula 09/12/2019 | H126: 12790 | I126: 255.8 | J126: 204.64 | K126: 51.16 | L126: =+M126 -> 63.4384 | M126: =+P126+P127+P128+P129 -> 63.4384 | O126: Inc. Pred. Doc | P126: =+J126*Q126 -> 10.232 | Q126: 0.05
A127: 2019 | B127: 4250 | C127: 197 DEL 13/11/2019 | D127: Z6D2A9B971 | E127: Fornitura di n. 4 Server NAS tipo desktop | F127: 20 gg lavorativi dalla stipula 09/12/2019 | H127: 12790 | I127: 255.8 | J127: =+(I127)*0.8 -> 204.64 | K127: =+(I127)*0.2 -> 51.16 | M127: =+M126 -> 63.4384 | O127: Coll. Inc. Pred. Doc | P127: =+J127*Q127 -> 20.464 | Q127: 0.1
A128: 2019 | B128: 4250 | C128: 197 DEL 13/11/2019 | D128: Z6D2A9B971 | E128: Fornitura di n. 4 Server NAS tipo desktop | F128: 20 gg lavorativi dalla stipula 09/12/2019 | H128: 12790 | I128: 255.8 | J128: 204.64 | K128: 51.16 | M128: =+M127 -> 63.4384 | O128: RUP Affidamento | P128: 20.464 | Q128: 0.1
A129: 2019 | B129: 4250 | C129: 197 DEL 13/11/2019 | D129: Z6D2A9B971 | E129: Fornitura di n. 4 Server NAS tipo desktop | F129: 20 gg lavorativi dalla stipula 09/12/2019 | H129: 12790 | I129: 255.8 | J129: 204.64 | K129: 51.16 | M129: 63.4384 | O129: Coll RUP Aff. | P129: 12.2784 | Q129: 0.06
A130: 2020 | B130: 4250 | C130: 201 del 12/11/2020 | D130: Z352F31EC2 | E130: Scanner documentali | F130: 2020-11-23 | G130: 2020-11-26 | H130: 12000 | I130: 240 | J130: 192 | K130: 48 | L130: =+M130 -> 59.52 | M130: =+P130+P131+P132+P133 -> 59.52 | N130: Boni Marco | O130: Inc. Pred. Doc | P130: 9.6 | Q130: 0.05 | S130: 0
A131: 2020 | B131: 4250 | C131: 201 del 12/11/2020 | D131: Z352F31EC2 | E131: Scanner documentali | F131: 2020-11-23 | G131: 2020-11-26 | H131: 12000 | I131: 240 | J131: 192 | K131: 48 | M131: 59.52 | N131: Boni Marco | O131: Coll. Inc. Pred. Doc | P131: 19.2 | Q131: 0.1 | S131: 0
A132: 2020 | B132: 4250 | C132: 201 del 12/11/2020 | D132: Z352F31EC2 | E132: Scanner documentali | F132: 2020-11-23 | G132: 2020-11-26 | H132: 12000 | I132: 240 | J132: 192 | K132: 48 | M132: 59.52 | N132: Boni Marco | O132: RUP Affidamento | P132: 19.2 | Q132: 0.1 | S132: 0
A133: 2020 | B133: 4250 | C133: 201 del 12/11/2020 | D133: Z352F31EC2 | E133: Scanner documentali | F133: 2020-11-23 | G133: 2020-11-26 | H133: 12000 | I133: 240 | J133: 192 | K133: 48 | M133: 59.52 | N133: Boni Marco | O133: Coll RUP Aff. | P133: 11.52 | Q133: 0.06 | S133: 0
A134: 2020 | B134: 4250 | C134: 20 del 30/1/2020 | D134: Z1B2BCE137 | E134: 300 HD SSP per PC Uffici G.A. | F134: 2020-02-20 | G134: 2020-03-02 | H134: 10400 | I134: 208 | J134: =+(I134)*0.8 -> 166.4 | K134: =+(I134)*0.2 -> 41.6 | L134: =+M134 -> 51.58 | M134: =+P134+P135+P136+P137 -> 51.58 | N134: Boni Marco | O134: Inc. Pred. Doc | P134: 8.32 | Q134: 0.05 | S134: 0
A135: 2020 | B135: 4250 | C135: 20 del 30/1/2020 | D135: Z1B2BCE137 | E135: 300 HD SSP per PC Uffici G.A. | F135: 2020-02-20 | G135: 2020-03-02 | H135: 10400 | I135: 208 | J135: 166.4 | K135: 41.6 | M135: 51.58 | N135: Boni Marco | O135: Coll. Inc. Pred. Doc | P135: 16.64 | Q135: 0.1 | S135: 0
A136: 2020 | B136: 4250 | C136: 20 del 30/1/2020 | D136: Z1B2BCE137 | E136: 300 HD SSP per PC Uffici G.A. | F136: 2020-02-20 | G136: 2020-03-02 | H136: 10400 | I136: 208 | J136: 166.4 | K136: 41.6 | M136: 51.58 | N136: Boni Marco | O136: RUP Affidamento | P136: 16.64 | Q136: 0.1 | S136: 0
A137: 2020 | B137: 4250 | C137: 20 del 30/1/2020 | D137: Z1B2BCE137 | E137: 300 HD SSP per PC Uffici G.A. | F137: 2020-02-20 | G137: 2020-03-02 | H137: 10400 | I137: 208 | J137: 166.4 | K137: 41.6 | M137: 51.58 | N137: Boni Marco | O137: Coll RUP Aff. | P137: 9.98 | Q137: 0.06 | S137: 0
A138: 2020 | B138: 4250 | C138: 29 del 12/2/2020 | D138: 8207062CE | E138: 100 PC Desktop | F138: 2020-03-16 | G138: 2020-05-14 | H138: 55100 | I138: 1102 | J138: 881.6 | K138: 220.4 | L138: =+M138 -> 273.3 | M138: =+P138+P139+P140+P141 -> 273.3 | N138: Boni Marco | O138: Inc. Pred. Doc | P138: 44.08 | Q138: 0.05 | S138: 0
A139: 2020 | B139: 4250 | C139: 29 del 12/2/2020 | D139: 8207062CE | E139: 100 PC Desktop | F139: 2020-03-16 | G139: 2020-05-14 | H139: 55100 | I139: 1102 | J139: 881.6 | K139: 220.4 | M139: 273.3 | N139: Boni Marco | O139: Coll. Inc. Pred. Doc | P139: 88.16 | Q139: 0.1 | S139: 0
A140: 2020 | B140: 4250 | C140: 29 del 12/2/2020 | D140: 8207062CE | E140: 100 PC Desktop | F140: 2020-03-16 | G140: 2020-05-14 | H140: 55100 | I140: 1102 | J140: 881.6 | K140: 220.4 | M140: 273.3 | N140: Boni Marco | O140: RUP Affidamento | P140: 88.16 | Q140: 0.1 | S140: 0
A141: 2020 | B141: 4250 | C141: 29 del 12/2/2020 | D141: 8207062CE | E141: 100 PC Desktop | F141: 2020-03-16 | G141: 2020-05-14 | H141: 55100 | I141: 1102 | J141: 881.6 | K141: 220.4 | M141: 273.3 | N141: Boni Marco | O141: Coll RUP Aff. | P141: 52.9 | Q141: 0.06 | S141: 0
A142: 2020 | B142: 4250 | C142: 199 del 10/11/2020 | D142: Z6C2F27E14 | E142: Stampanti - Conv. Consip - Lotto 1 | F142: 2020-11-10 | G142: 2020-11-11 | H142: 6755.4 | I142: 135.11 | J142: 108.088 | K142: 27.022 | L142: =+M142 -> 15.13 | M142: =+P142+P143+P144+P145 -> 15.13 | N142: Boni Marco | O142: Inc. Pred. Doc | P142: 2.16 | Q142: 0.02 | S142: 0
A143: 2020 | B143: 4250 | C143: 199 del 10/11/2020 | D143: Z6C2F27E14 | E143: Stampanti - Conv. Consip - Lotto 1 | F143: 2020-11-10 | G143: 2020-11-11 | H143: 6755.4 | I143: 135.11 | J143: 108.088 | K143: 27.022 | M143: 15.13 | N143: Boni Marco | O143: Coll. Inc. Pred. Doc | P143: 1.08 | Q143: 0.01 | S143: 0
A144: 2020 | B144: 4250 | C144: 199 del 10/11/2020 | D144: Z6C2F27E14 | E144: Stampanti - Conv. Consip - Lotto 1 | F144: 2020-11-10 | G144: 2020-11-11 | H144: 6755.4 | I144: 135.11 | J144: 108.088 | K144: 27.022 | M144: 15.13 | N144: Boni Marco | O144: RUP Affidamento | P144: 8.65 | Q144: 0.08 | S144: 0
A145: 2020 | B145: 4250 | C145: 199 del 10/11/2020 | D145: Z6C2F27E14 | E145: Stampanti - Conv. Consip - Lotto 1 | F145: 2020-11-10 | G145: 2020-11-11 | H145: 6755.4 | I145: 135.11 | J145: 108.088 | K145: 27.022 | M145: 15.13 | N145: Boni Marco | O145: Coll RUP Aff. | P145: 3.24 | Q145: 0.03 | S145: 0
A146: 2020 | B146: 4250 | C146: 227 del 4/12/2020 | D146: ZA52F952E9 | E146: 2 Scanner documentali A3 | F146: 2020-12-11 | G146: 2020-12-16 | H146: 1200 | I146: 24 | J146: 19.2 | K146: 4.8 | L146: =+M146 -> 5.95 | M146: =+P146+P147+P148+P149 -> 5.95 | N146: Boni Marco | O146: Inc. Pred. Doc | P146: 0.96 | Q146: 0.05 | S146: 0
A147: 2020 | B147: 4250 | C147: 227 del 4/12/2020 | D147: ZA52F952E9 | E147: 2 Scanner documentali A3 | F147: 2020-12-11 | G147: 2020-12-16 | H147: 1200 | I147: 24 | J147: 19.2 | K147: 4.8 | M147: 5.95 | N147: Boni Marco | O147: Coll. Inc. Pred. Doc | P147: 1.92 | Q147: 0.1 | S147: 0
A148: 2020 | B148: 4250 | C148: 227 del 4/12/2020 | D148: ZA52F952E9 | E148: 2 Scanner documentali A3 | F148: 2020-12-11 | G148: 2020-12-16 | H148: 1200 | I148: 24 | J148: 19.2 | K148: 4.8 | M148: 5.95 | N148: Boni Marco | O148: RUP Affidamento | P148: 1.92 | Q148: 0.1 | S148: 0
A149: 2020 | B149: 4250 | C149: 227 del 4/12/2020 | D149: ZA52F952E9 | E149: 2 Scanner documentali A3 | F149: 2020-12-11 | G149: 2020-12-16 | H149: 1200 | I149: 24 | J149: 19.2 | K149: 4.8 | M149: 5.95 | N149: Boni Marco | O149: Coll RUP Aff. | P149: 1.15 | Q149: 0.06 | S149: 0
A150: 2020 | B150: 4250 | C150: 100 del 3/6/2020 | D150: Z332D2E48E | E150: Armadio ignifugo | F150: 2020-07-09 | G150: 2020-07-15 | H150: 4000 | I150: 80 | J150: 64 | K150: 16 | L150: =+M150 -> 19.84 | M150: =+P150+P151+P152+P153 -> 19.84 | N150: Boni Marco | O150: Inc. Pred. Doc | P150: 3.2 | Q150: 0.05 | S150: 0
A151: 2020 | B151: 4250 | C151: 100 del 3/6/2020 | D151: Z332D2E48E | E151: Armadio ignifugo | F151: 2020-07-09 | G151: 2020-07-15 | H151: 4000 | I151: 80 | J151: 64 | K151: 16 | M151: 19.84 | N151: Boni Marco | O151: Coll. Inc. Pred. Doc | P151: 6.4 | Q151: 0.1 | S151: 0
A152: 2020 | B152: 4250 | C152: 100 del 3/6/2020 | D152: Z332D2E48E | E152: Armadio ignifugo | F152: 2020-07-09 | G152: 2020-07-15 | H152: 4000 | I152: 80 | J152: 64 | K152: 16 | M152: 19.84 | N152: Boni Marco | O152: RUP Affidamento | P152: 6.4 | Q152: 0.1 | S152: 0
A153: 2020 | B153: 4250 | C153: 100 del 3/6/2020 | D153: Z332D2E48E | E153: Armadio ignifugo | F153: 2020-07-09 | G153: 2020-07-15 | H153: 4000 | I153: 80 | J153: 64 | K153: 16 | M153: 19.84 | N153: Boni Marco | O153: Coll RUP Aff. | P153: 3.84 | Q153: 0.06 | S153: 0
A154: 2020 | B154: 4250 | C154: 214 del 23/11/2020 | D154: Z552F56109 | E154: Stampanti multifunzione e relativo materiale di consumo | F154: 30 gg dalla data di stipula | H154: 34000 | I154: 680 | J154: =+(I154)*0.8 -> 544 | K154: =+(I154)*0.2 -> 136 | L154: =+M154 -> 168.64 | M154: =+P154+P155+P156+P157 -> 168.64 | N154: Primavera Michele | O154: Inc. Pred. Doc | P154: =+$J$154*Q154 -> 27.2 | Q154: 0.05 | S154: 0
A155: 2020 | B155: 4250 | C155: 214 del 23/11/2020 | D155: Z552F56109 | E155: Stampanti multifunzione e relativo materiale di consumo | F155: 30 gg dalla data di stipula | H155: 34000 | I155: 680 | J155: =+(I155)*0.8 -> 544 | K155: =+(I155)*0.2 -> 136 | M155: 168.64 | N155: Primavera Michele | O155: Coll. Inc. Pred. Doc | P155: =+$J$154*Q155 -> 54.4 | Q155: 0.1 | S155: 0
A156: 2020 | B156: 4250 | C156: 214 del 23/11/2020 | D156: Z552F56109 | E156: Stampanti multifunzione e relativo materiale di consumo | F156: 30 gg dalla data di stipula | H156: 34000 | I156: 680 | J156: =+(I156)*0.8 -> 544 | K156: =+(I156)*0.2 -> 136 | M156: 168.64 | N156: Primavera Michele | O156: RUP Affidamento | P156: =+$J$154*Q156 -> 54.4 | Q156: 0.1 | S156: 0
A157: 2020 | B157: 4250 | C157: 214 del 23/11/2020 | D157: Z552F56109 | E157: Stampanti multifunzione e relativo materiale di consumo | F157: 30 gg dalla data di stipula | H157: 34000 | I157: 680 | J157: =+(I157)*0.8 -> 544 | K157: =+(I157)*0.2 -> 136 | M157: 168.64 | N157: Primavera Michele | O157: Coll RUP Aff. | P157: =+$J$154*Q157 -> 32.64 | Q157: 0.06 | S157: 0
A158: 2020 | B158: 4250 | C158: 239 del 16/12/2020 | D158: 85541167D4 | E158: fornitura di 60 notebook da 15,6 pollici | F158: 30 gg dalla data di stipula | H158: 39900 | I158: =+H158*0.02 -> 798 | J158: =+(I158)*0.8 -> 638.4 | K158: =+(I158)*0.2 -> 159.6 | L158: =+M158 -> 197.904 | M158: =+P158+P159+P160+P161 -> 197.904 | N158: Primavera Michele | O158: Inc. Pred. Doc | P158: =+$J$158*Q158 -> 31.92 | Q158: 0.05 | S158: 0
A159: 2020 | B159: 4250 | C159: 239 del 16/12/2020 | D159: 85541167D4 | E159: fornitura di 60 notebook da 15,6 pollici | F159: 30 gg dalla data di stipula | H159: 39900 | I159: =+H159*0.02 -> 798 | J159: =+(I159)*0.8 -> 638.4 | K159: =+(I159)*0.2 -> 159.6 | M159: 197.9 | N159: Querqui Cristiana | O159: Coll. Inc. Pred. Doc | P159: =+$J$158*Q159 -> 63.84 | Q159: 0.1 | S159: 0
A160: 2020 | B160: 4250 | C160: 239 del 16/12/2020 | D160: 85541167D4 | E160: fornitura di 60 notebook da 15,6 pollici | F160: 30 gg dalla data di stipula | H160: 39900 | I160: =+H160*0.02 -> 798 | J160: =+(I160)*0.8 -> 638.4 | K160: =+(I160)*0.2 -> 159.6 | M160: 197.9 | N160: Primavera Michele | O160: RUP Affidamento | P160: =+$J$158*Q160 -> 63.84 | Q160: 0.1 | S160: 0
A161: 2020 | B161: 4250 | C161: 239 del 16/12/2020 | D161: 85541167D4 | E161: fornitura di 60 notebook da 15,6 pollici | F161: 30 gg dalla data di stipula | H161: 39900 | I161: =+H161*0.02 -> 798 | J161: 638.4 | K161: 159.6 | M161: 197.9 | N161: Querqui Cristiana | O161: Coll RUP Aff. | P161: =+$J$158*Q161 -> 38.304 | Q161: 0.06 | S161: 0
A162: 2020 | B162: 4250 | C162: 189 del 20/10/2020 | D162: 8492469F1B | E162: Soluzione di Endpoint security | F162: 36 mesi data consegna | H162: 150000 | I162: 3000 | J162: 2400 | K162: 600 | L162: =+M162 -> 744 | M162: =+P162+P163+P164+P165 -> 744 | N162: Leonardo Cipriano | O162: Inc. Pred. Doc | P162: =+J162*Q162 -> 120 | Q162: 0.05 | S162: 0
A163: 2020 | B163: 4250 | C163: 189 del 20/10/2020 | D163: 8492469F1B | E163: Soluzione di Endpoint security | F163: 36 mesi data consegna | H163: 150000 | I163: 3000 | J163: 2400 | K163: 600 | M163: 744 | N163: Leonardo Cipriano | O163: Coll. Inc. Pred. Doc | P163: 240 | Q163: 0.1 | S163: 0
A164: 2020 | B164: 4250 | C164: 189 del 20/10/2020 | D164: 8492469F1B | E164: Soluzione di Endpoint security | F164: 36 mesi data consegna | H164: 150000 | I164: 3000 | J164: 2400 | K164: 600 | M164: 744 | N164: Leonardo Cipriano | O164: RUP Affidamento | P164: 240 | Q164: 0.1 | S164: 0
A165: 2020 | B165: 4250 | C165: 189 del 20/10/2020 | D165: 8492469F1B | E165: Soluzione di Endpoint security | F165: 36 mesi data consegna | H165: 150000 | I165: 3000 | J165: 2400 | K165: 600 | M165: 744 | N165: Leonardo Cipriano | O165: Coll RUP Aff. | P165: 144 | Q165: 0.06 | S165: 0
A166: 2019 | B166: 4250 | C166: 210 del 28/11/2019 | D166: 8115577201 | E166: Switch per reti LAN (gara deserta) | F166: contratto non stipulato | H166: 190000 | I166: 3800 | J166: 3040 | K166: 760 | L166: =+M166 -> 942.4 | M166: =+P166+P167+P168+P169 -> 942.4 | N166: Leonardo Cipriano | O166: Inc. Pred. Doc | P166: 152 | Q166: 0.05 | S166: 0
A167: 2019 | B167: 4250 | C167: 210 del 28/11/2019 | D167: 8115577201 | E167: Switch per reti LAN (gara deserta) | F167: contratto non stipulato | H167: 190000 | I167: 3800 | J167: 3040 | K167: 760 | M167: 942.4 | N167: Leonardo Cipriano | O167: Coll. Inc. Pred. Doc | P167: 304 | Q167: 0.1 | S167: 0
A168: 2019 | B168: 4250 | C168: 210 del 28/11/2019 | D168: 8115577201 | E168: Switch per reti LAN (gara deserta) | F168: contratto non stipulato | H168: 190000 | I168: 3800 | J168: 3040 | K168: 760 | M168: 942.4 | N168: Leonardo Cipriano | O168: RUP Affidamento | P168: 304 | Q168: 0.1 | S168: 0
A169: 2019 | B169: 4250 | C169: 210 del 28/11/2019 | D169: 8115577201 | E169: Switch per reti LAN (gara deserta) | F169: contratto non stipulato | H169: 190000 | I169: 3800 | J169: 3040 | K169: 760 | M169: 942.4 | N169: Leonardo Cipriano | O169: Coll RUP Aff. | P169: 182.4 | Q169: 0.06 | S169: 0
A170: 2020 | B170: 4250 | C170: 219 del 26/11/2020 | D170: 8531741765 | E170: Licenze Oracle - Consip | F170: 12 mesi data consegna | H170: 1021674.62 | I170: =+H170*1.9% -> 19411.81778 | J170: =+(I170)*0.8 -> 15529.45422 | K170: 3882.363556 | L170: =+M170 -> 2174.123591 | M170: =+P170+P171+P172+P173 -> 2174.123591 | N170: Leonardo Cipriano | O170: Inc. Pred. Doc | P170: 310.5890845 | Q170: 0.02 | S170: 0
A171: 2020 | B171: 4250 | C171: 219 del 26/11/2020 | D171: 8531741765 | E171: Licenze Oracle - Consip | F171: 12 mesi data consegna | H171: 1021674.62 | I171: =+H171*1.9% -> 19411.81778 | J171: 15529.45422 | K171: 3882.363556 | M171: 2174.12 | N171: Cristiana Querqui | O171: Coll. Inc. Pred. Doc | P171: 155.2945422 | Q171: 0.01 | S171: 0
A172: 2020 | B172: 4250 | C172: 219 del 26/11/2020 | D172: 8531741765 | E172: Licenze Oracle - Consip | F172: 12 mesi data consegna | H172: 1021674.62 | I172: =+H172*1.9% -> 19411.81778 | J172: 15529.45422 | K172: 3882.363556 | M172: 2174.12 | N172: Leonardo Cipriano | O172: RUP Affidamento | P172: 1242.356338 | Q172: 0.08 | S172: 0
A173: 2020 | B173: 4250 | C173: 219 del 26/11/2020 | D173: 8531741765 | E173: Licenze Oracle - Consip | F173: 12 mesi data consegna | H173: 1021674.62 | I173: =+H173*1.9% -> 19411.81778 | J173: 15529.45422 | K173: 3882.363556 | M173: 2174.12 | N173: Cristiana Querqui | O173: Coll RUP Aff. | P173: 465.8836267 | Q173: 0.03 | S173: 0
A174: 2020 | B174: 4250 | C174: 126 del 14/7/2020 | D174: 8371396684 | E174: Fornitura di un’unità di storage | F174: 2020-11-17 | G174: 2022-09-30 | H174: 160000 | I174: 3200 | J174: 2560 | K174: 640 | L174: =+M174 -> 793.6 | M174: =+P174+P175+P176+P177 -> 793.6 | N174: Leonardo Cipriano | O174: Inc. Pred. Doc | P174: 128 | Q174: 0.05 | S174: 0
A175: 2020 | B175: 4250 | C175: 126 del 14/7/2020 | D175: 8371396684 | E175: Fornitura di un’unità di storage | F175: 2020-11-17 | G175: 2022-09-30 | H175: 160000 | I175: 3200 | J175: 2560 | K175: 640 | M175: 793.6 | N175: Leonardo Cipriano | O175: Coll. Inc. Pred. Doc | P175: 256 | Q175: 0.1 | S175: 0
A176: 2020 | B176: 4250 | C176: 126 del 14/7/2020 | D176: 8371396684 | E176: Fornitura di un’unità di storage | F176: 2020-11-17 | G176: 2022-09-30 | H176: 160000 | I176: 3200 | J176: 2560 | K176: 640 | M176: 793.6 | N176: Leonardo Cipriano | O176: RUP Affidamento | P176: 256 | Q176: 0.1 | S176: 0
A177: 2020 | B177: 4250 | C177: 126 del 14/7/2020 | D177: 8371396684 | E177: Fornitura di un’unità di storage | F177: 2020-11-17 | G177: 2022-09-30 | H177: 160000 | I177: 3200 | J177: 2560 | K177: 640 | M177: 793.6 | N177: Leonardo Cipriano | O177: Coll RUP Aff. | P177: 153.6 | Q177: 0.06 | S177: 0
A178: 2020 | B178: 4250 | C178: 228 del 04/12/2020 | D178: Z212F99357 | E178: affidamento della fornitura di n. 20 Tablet 2-in-1 marca Lenovo | F178: 30 gg dalla data di stipula | H178: 20946 | I178: =+H178*0.02 -> 418.92 | J178: =+(I178)*0.8 -> 335.136 | K178: =+(I178)*0.2 -> 83.784 | L178: =+M178 -> 46.91904 | M178: =+P178+P179+P180+P181 -> 46.91904 | N178: Querqui Cristiana | O178: Inc. Pred. Doc | P178: 6.70272 | Q178: 0.02 | S178: 0
A179: 2020 | B179: 4250 | C179: 228 del 04/12/2020 | D179: Z212F99357 | E179: affidamento della fornitura di n. 20 Tablet 2-in-1 marca Lenovo | F179: 30 gg dalla data di stipula | H179: 20946 | I179: 418.92 | J179: =+(I179)*0.8 -> 335.136 | K179: =+(I179)*0.2 -> 83.784 | M179: 46.92 | N179: Querqui Cristiana | O179: Coll. Inc. Pred. Doc | P179: =+J178*Q179 -> 3.35136 | Q179: 0.01 | S179: 0
A180: 2020 | B180: 4250 | C180: 228 del 04/12/2020 | D180: Z212F99357 | E180: affidamento della fornitura di n. 20 Tablet 2-in-1 marca Lenovo | F180: 30 gg dalla data di stipula | H180: 20946 | I180: 418.92 | J180: =+(I180)*0.8 -> 335.136 | K180: =+(I180)*0.2 -> 83.784 | M180: 46.92 | N180: Querqui Cristiana | O180: RUP Affidamento | P180: =+J178*Q180 -> 26.81088 | Q180: 0.08 | S180: 0
A181: 2020 | B181: 4250 | C181: 228 del 04/12/2020 | D181: Z212F99357 | E181: affidamento della fornitura di n. 20 Tablet 2-in-1 marca Lenovo | F181: 30 gg dalla data di stipula | H181: 20946 | I181: 418.92 | J181: =+(I181)*0.8 -> 335.136 | K181: =+(I181)*0.2 -> 83.784 | M181: 46.92 | N181: Querqui Cristiana | O181: Coll RUP Aff. | P181: =+J178*Q181 -> 10.05408 | Q181: 0.03 | S181: 0
A182: 2020 | B182: 4250 | C182: 67 del 20/03/2020 | D182: 8252589BDF | E182: n. 200 notebook 14’’ disponibili in convenzione Consip “PC Portatili e tablet 3 | F182: 30 gg dalla data di stipula | H182: 84460 | I182: 1689.2 | J182: =+(I182)*0.8 -> 1351.36 | K182: =+(I182)*0.2 -> 337.84 | L182: =+M182 -> 189.1904 | M182: =+P182+P183+P184+P185 -> 189.1904 | N182: Querqui Cristiana | O182: Inc. Pred. Doc | P182: =+J182*Q182 -> 27.0272 | Q182: 0.02 | S182: 0
A183: 2020 | B183: 4250 | C183: 67 del 20/03/2020 | D183: 8252589BDF | E183: n. 200 notebook 14’’ disponibili in convenzione Consip “PC Portatili e tablet 3 | F183: 30 gg dalla data di stipula | H183: 84460 | I183: 1689.2 | J183: =+(I183)*0.8 -> 1351.36 | K183: =+(I183)*0.2 -> 337.84 | M183: 189.19 | N183: Querqui Cristiana | O183: Coll. Inc. Pred. Doc | P183: =+J183*Q183 -> 13.5136 | Q183: 0.01 | S183: 0
A184: 2020 | B184: 4250 | C184: 67 del 20/03/2020 | D184: 8252589BDF | E184: n. 200 notebook 14’’ disponibili in convenzione Consip “PC Portatili e tablet 3 | F184: 30 gg dalla data di stipula | H184: 84460 | I184: 1689.2 | J184: 1351.36 | K184: 337.84 | M184: 189.19 | N184: Querqui Cristiana | O184: RUP Affidamento | P184: =+J184*Q184 -> 108.1088 | Q184: 0.08 | S184: 0
A185: 2020 | B185: 4250 | C185: 67 del 20/03/2020 | D185: 8252589BDF | E185: n. 200 notebook 14’’ disponibili in convenzione Consip “PC Portatili e tablet 3 | F185: 30 gg dalla data di stipula | H185: 84460 | I185: 1689.2 | J185: 1351.36 | K185: 337.84 | M185: 189.19 | N185: Querqui Cristiana | O185: Coll RUP Aff. | P185: =+J185*Q185 -> 40.5408 | Q185: 0.03 | S185: 0
A186: 2020 | B186: 4253 | C186: 14 del 27/1/2020 | D186: 8182964B81 | E186: Adeguamento Rete VOIP | F186: 2020-02-17 | G186: sospensione | H186: 36852.52 | I186: 737.0504 | J186: =+(I186)*0.8 -> 589.64032 | K186: =+(I186)*0.2 -> 147.41008 | L186: =+M186 -> 589.64032 | M186: =+P186+P187+P188+P189+P190+P191+P192+P193+P194+P195+P196+P197+P198+P199+P200+P201+P202+P203 -> 589.64032 | N186: Paola Ristori | O186: Incaricato programm. | P186: =+J186*Q186 -> 17.6892096 | Q186: 0.03 | S186: 0
A187: 2020 | B187: 4253 | C187: 14 del 27/1/2020 | D187: 8182964B81 | E187: Adeguamento Rete VOIP | F187: 2020-02-17 | G187: sospensione | H187: 36852.52 | I187: =+H187*0.02 -> 737.0504 | J187: 589.64032 | K187: 147.41008 | M187: 589.64 | N187: Teresa Coluzzi | O187: Coll. Inc. prog. | P187: =+J187*Q187 -> 11.7928064 | Q187: 0.02 | S187: 0
A188: 2020 | B188: 4253 | C188: 14 del 27/1/2020 | D188: 8182964B81 | E188: Adeguamento Rete VOIP | F188: 2020-02-17 | G188: sospensione | H188: 36852.52 | I188: 737.0504 | J188: 589.64032 | K188: 147.41008 | M188: 589.64 | N188: Claudio Vecchi | O188: Inc. Pred. Doc. | P188: 79.6014432 | Q188: 0.135 | S188: 0
A189: 2020 | B189: 4253 | C189: 14 del 27/1/2020 | D189: 8182964B81 | E189: Adeguamento Rete VOIP | F189: 2020-02-17 | G189: sospensione | H189: 36852.52 | I189: 737.0504 | J189: 589.64032 | K189: 147.41008 | M189: 589.64 | N189: Pasqualina Costanzo | O189: Coll. Inc. Pred. | P189: 17.6892096 | Q189: 0.03 | S189: 0
A190: 2020 | B190: 4253 | C190: 14 del 27/1/2020 | D190: 8182964B81 | E190: Adeguamento Rete VOIP | F190: 2020-02-17 | G190: sospensione | H190: 36852.52 | I190: 737.0504 | J190: 589.64032 | K190: 147.41008 | M190: 589.64 | N190: Claudio Vecchi | O190: RUP Affidamento | P190: 170.9956928 | Q190: 0.29 | S190: 0
A191: 2020 | B191: 4253 | C191: 14 del 27/1/2020 | D191: 8182964B81 | E191: Adeguamento Rete VOIP | F191: 2020-02-17 | G191: sospensione | H191: 36852.52 | I191: 737.0504 | J191: 589.64032 | K191: 147.41008 | M191: 589.64 | N191: Pasqualina Costanzo | O191: Coll. RUP Affidamento | P191: 38.3266208 | Q191: 0.065 | S191: 0
A192: 2020 | B192: 4253 | C192: 14 del 27/1/2020 | D192: 8182964B81 | E192: Adeguamento Rete VOIP | F192: 2020-02-17 | G192: sospensione | H192: 36852.52 | I192: 737.0504 | J192: 589.64032 | K192: 147.41008 | M192: 589.64 | N192: Claudio Vecchi | O192: RUP esecuzione | P192: 106.1352576 | Q192: 0.18 | S192: 0
A193: 2020 | B193: 4253 | C193: 14 del 27/1/2020 | D193: 8182964B81 | E193: Adeguamento Rete VOIP | F193: 2020-02-17 | G193: sospensione | H193: 36852.52 | I193: 737.0504 | J193: 589.64032 | K193: 147.41008 | M193: 589.64 | N193: Bello Stefania | O193: Coll. RUP esecuzione | P193: 5.8964032 | Q193: 0.01 | S193: 0
A194: 2020 | B194: 4253 | C194: 14 del 27/1/2020 | D194: 8182964B81 | E194: Adeguamento Rete VOIP | F194: 2020-02-17 | G194: sospensione | H194: 36852.52 | I194: 737.0504 | J194: 589.64032 | K194: 147.41008 | M194: 589.64 | N194: Trincia Paola | O194: Coll. RUP esecuzione | P194: 5.8964032 | Q194: 0.01 | S194: 0
A195: 2020 | B195: 4253 | C195: 14 del 27/1/2020 | D195: 8182964B81 | E195: Adeguamento Rete VOIP | F195: 2020-02-17 | G195: sospensione | H195: 36852.52 | I195: 737.0504 | J195: 589.64032 | K195: 147.41008 | M195: 589.64 | N195: Venanzi Delia | O195: Coll. RUP esecuzione | P195: 5.8964032 | Q195: 0.01 | S195: 0
A196: 2020 | B196: 4253 | C196: 14 del 27/1/2020 | D196: 8182964B81 | E196: Adeguamento Rete VOIP | F196: 2020-02-17 | G196: sospensione | H196: 36852.52 | I196: 737.0504 | J196: 589.64032 | K196: 147.41008 | M196: 589.64 | N196: Paola Ristori | O196: Coll. RUP esecuzione | P196: 5.8964032 | Q196: 0.01 | S196: 0
A197: 2020 | B197: 4253 | C197: 14 del 27/1/2020 | D197: 8182964B81 | E197: Adeguamento Rete VOIP | F197: 2020-02-17 | G197: sospensione | H197: 36852.52 | I197: 737.0504 | J197: 589.64032 | K197: 147.41008 | M197: 589.64 | N197: Fondo | O197: DEC esterno | P197: 67.8086368 | Q197: 0.115 | S197: 0
A198: 2020 | B198: 4253 | C198: 14 del 27/1/2020 | D198: 8182964B81 | E198: Adeguamento Rete VOIP | F198: 2020-02-17 | G198: sospensione | H198: 36852.52 | I198: 737.0504 | J198: 589.64032 | K198: 147.41008 | M198: 589.64 | N198: Bello Stefania | O198: Coll. DEC | P198: 6.6334536 | Q198: 0.01125 | S198: 0
A199: 2020 | B199: 4253 | C199: 14 del 27/1/2020 | D199: 8182964B81 | E199: Adeguamento Rete VOIP | F199: 2020-02-17 | G199: sospensione | H199: 36852.52 | I199: 737.0504 | J199: 589.64032 | K199: 147.41008 | M199: 589.64 | N199: Trincia Paola | O199: Coll. DEC | P199: 6.6334536 | Q199: 0.01125 | S199: 0
A200: 2020 | B200: 4253 | C200: 14 del 27/1/2020 | D200: 8182964B81 | E200: Adeguamento Rete VOIP | F200: 2020-02-17 | G200: sospensione | H200: 36852.52 | I200: 737.0504 | J200: 589.64032 | K200: 147.41008 | M200: 589.64 | N200: Venanzi Delia | O200: Coll. DEC | P200: 6.6334536 | Q200: 0.01125 | S200: 0
A201: 2020 | B201: 4253 | C201: 14 del 27/1/2020 | D201: 8182964B81 | E201: Adeguamento Rete VOIP | F201: 2020-02-17 | G201: sospensione | H201: 36852.52 | I201: 737.0504 | J201: 589.64032 | K201: 147.41008 | M201: 589.64 | N201: Paola Ristori | O201: Coll. DEC | P201: 6.6334536 | Q201: 0.01125 | S201: 0
... 912 more rows

Sheet norip
